fUST/lending_fUST_20240809
["ID","MTS","AMOUNT","RATE_DAILY","PERIOD"]
[334500176,1723169442164,-1010.92242383,0.00025435,2]
[334500178,1723169442174,-160.0,0.00025438,6]
[334500180,1723169442184,-151.951967,0.00025445,7]
[334500182,1723169442193,-402.24567,0.00025445,7]
[334500183,1723169442203,-402.24567,0.00025445,7]
[334500184,1723169442212,-167.842451,0.00025445,7]
[334500185,1723169442224,-167.842451,0.00025445,7]
[334500186,1723169442233,-374.01739,0.00025445,7]
[334500187,1723169442243,-108.85367348,0.00025445,7]
[334505964,1723169671400,161.127942,0.00014247,2]
[334505967,1723170152191,161.127927,0.00014247,2]
[334505972,1723170504769,195.26408282,0.00014247,2]
[334505973,1723170525829,8779.1572148,0.00014,2]
[334505974,1723170525855,20619.38719194,0.00014,2]
[334506014,1723170638817,-166.33301228,0.00018799,2]
[334506016,1723170638827,-403.97923523,0.00018825,2]
[334506018,1723170638837,-737.5892133,0.0001891,2]
[334506020,1723170638846,-210.67951398,0.00018921,2]
[334506023,1723170638855,-154.79103211,0.00018945,2]
[334506026,1723170638864,-667.29065934,0.00019451,2]
[334506028,1723170638874,-154.79103211,0.00019451,2]
[334506030,1723170638885,-214.75860163,0.00019451,2]
[334506032,1723170638894,-205.99574688,0.00019451,2]
[334506034,1723170638903,-173.13953359,0.00019477,2]
[334506036,1723170638913,-686.59364774,0.00019547,2]
[334506038,1723170638922,-300.0,0.00019999,2]
[334506040,1723170638931,-300.0,0.00019999,2]
[334506042,1723170638941,-188.88873553,0.0002,2]
[334506044,1723170638952,-1444.60456197,0.0002,2]
[334506046,1723170638962,-49007.44785707,0.0002,2]
[334506048,1723170638972,-428.53911302,0.0002,2]
[334506050,1723170638982,-158.13903548,0.0002,2]
[334506052,1723170638992,-255.7915999,0.0002,2]
[334506054,1723170639002,-294.28393168,0.0002,2]
[334506056,1723170639011,-294.28393168,0.0002,2]
[334506058,1723170639023,-197.22406328,0.0002028,2]
[334506060,1723170639032,-500.0,0.0002062,2]
[334506062,1723170639042,-500.0,0.0002062,2]
[334506064,1723170639051,-500.0,0.0002062,2]
[334506066,1723170639061,-235.2305738,0.0002062,2]
[334506068,1723170639070,-500.0,0.0002062,2]
[334506070,1723170639079,-3585.24327792,0.00020621,2]
[334506072,1723170639089,-1760.61633751,0.00021,2]
[334506074,1723170639099,-7483.33571935,0.00021,2]
[334506075,1723170639108,-232.73104163,0.00021,2]
[334506076,1723170639118,-154.82306886,0.00021,2]
[334506077,1723170639127,-154.79103211,0.00021048,2]
[334506078,1723170639136,-206.728403,0.00021172,2]
[334506079,1723170639146,-503.80500021,0.000212,2]
[334506080,1723170639156,-250.0,0.00021289,2]
[334506081,1723170639166,-245.0,0.00021777,2]
[334506082,1723170639176,-420.0,0.00021999,2]
[334506083,1723170639187,-2063.7484723,0.00022,2]
[334506084,1723170639197,-173.0,0.00022,2]
[334506085,1723170639206,-3585.24327789,0.00022377,2]
[334506086,1723170639217,-641.40525198,0.0002268,2]
[334506087,1723170639226,-5308.13272752,0.00022961,2]
[334506088,1723170639235,-8019.43788047,0.00023,2]
[334506089,1723170639245,-173.0,0.00023014,2]
[334506090,1723170639255,-5308.13272752,0.00023274,2]
[334506091,1723170639265,-725.85,0.00023398,3]
[334506092,1723170639279,-5308.13272752,0.00023408,2]
[334506093,1723170639292,-5308.13272752,0.00023611,2]
[334506094,1723170639301,-161.127927,0.00023688,2]
[334506095,1723170639311,-160.0,0.00023723,3]
[334506098,1723170639321,-621.0702626,0.00023814,2]
[334506100,1723170639331,-5308.13272752,0.00023955,2]
[334506102,1723170639340,-4351.71715984,0.00024,30]
[334506104,1723170639350,-318.55212607,0.00024,2]
[334506106,1723170639360,-3585.24327789,0.00024133,2]
[334506108,1723170639369,-160.0,0.00024174,4]
[334506110,1723170639383,-587.0,0.00024199,2]
[334506112,1723170639393,-5308.13272752,0.00024211,2]
[334506114,1723170639403,-153.0,0.0002445,2]
[334506116,1723170639412,-153.0,0.0002445,2]
[334506118,1723170639422,-153.0,0.0002445,2]
[334506120,1723170639432,-153.0,0.0002445,2]
[334506122,1723170639441,-153.0,0.0002445,2]
[334506124,1723170639452,-153.0,0.0002445,2]
[334506126,1723170639461,-153.0,0.0002445,2]
[334506128,1723170639471,-153.0,0.0002445,2]
[334506130,1723170639480,-153.0,0.0002445,2]
[334506132,1723170639489,-153.0,0.0002445,2]
[334506133,1723170639498,-153.0,0.0002445,2]
[334506135,1723170639507,-153.0,0.0002445,2]
[334506136,1723170639516,-153.0,0.0002445,2]
[334506138,1723170639528,-153.0,0.0002445,2]
[334506140,1723170639537,-153.0,0.0002445,2]
[334506142,1723170639547,-153.0,0.0002445,2]
[334506144,1723170639556,-153.0,0.0002445,2]
[334506146,1723170639565,-153.0,0.0002445,2]
[334506148,1723170639575,-153.0,0.0002445,2]
[334506150,1723170639584,-153.0,0.0002445,2]
[334506152,1723170639593,-153.0,0.0002445,2]
[334506154,1723170639603,-5308.13272752,0.00024613,2]
[334506156,1723170639612,-160.0,0.00024626,5]
[334506158,1723170639622,-172.33,0.0002476,3]
[334506160,1723170639631,-215.42,0.0002476,3]
[334506162,1723170639640,-241.94,0.0002476,3]
[334506164,1723170639650,-225.37,0.0002477,3]
[334506166,1723170639659,-150.52070897,0.00024773,2]
[334506168,1723170639669,-16647.27921688,0.0002478,2]
[334506170,1723170639679,-753.99,0.0002478,3]
[334506172,1723170639689,-40212.8704861,0.0002479,3]
[334506174,1723170639698,-315.1950708,0.00024795,2]
[334506176,1723170639707,-38334.44395745,0.00024804,11]
[334506177,1723170639716,-5308.13272752,0.00024804,2]
[334506179,1723170639727,-16647.27921688,0.0002481,2]
[334506181,1723170639736,-40212.8704861,0.0002483,3]
[334506183,1723170639747,-16647.27921688,0.0002484,2]
[334506185,1723170639756,-40212.8704861,0.0002486,3]
[334506187,1723170639765,-224.40566705,0.00024868,2]
[334506189,1723170639777,-198.61491703,0.00024868,2]
[334506191,1723170639786,-569.56129853,0.00024868,2]
[334506193,1723170639796,-500.0,0.00024868,2]
[334506195,1723170639806,-500.0,0.00024868,2]
[334506197,1723170639817,-500.0,0.00024868,2]
[334506199,1723170639826,-500.0,0.00024868,2]
[334506201,1723170639837,-500.0,0.00024868,2]
[334506203,1723170639846,-500.0,0.00024868,2]
[334506205,1723170639858,-500.0,0.00024868,2]
[334506207,1723170639867,-500.0,0.00024868,2]
[334506209,1723170639877,-500.0,0.00024868,2]
[334506211,1723170639886,-16647.27921688,0.0002487,2]
[334506213,1723170639896,-151.0,0.0002487,7]
[334506215,1723170639905,-151.0,0.0002487,7]
[334506217,1723170639915,-151.0,0.0002487,7]
[334506219,1723170639925,-49519.81124728,0.0002487,3]
[334506351,1723170641196,-30905.92972502,0.0002487,3]
[334506353,1723170641205,-80548.40768802,0.0002488,3]
[334506356,1723170641215,-40212.8704861,0.0002489,3]
[334506358,1723170641225,-3045.64355524,0.0002489,2]
[334506360,1723170641234,-592.698329,0.0002489,7]
[334506362,1723170641244,-592.698329,0.0002489,7]
[334506364,1723170641253,-810.217983,0.0002489,7]
[334506366,1723170641263,-810.217983,0.0002489,7]
[334506368,1723170641273,-151.0,0.0002489,7]
[334506370,1723170641282,-151.0,0.0002489,7]
[334506372,1723170641292,-151.0,0.0002489,7]
[334506374,1723170641301,-151.0,0.0002489,7]
[334506376,1723170641310,-296.227778,0.0002489,7]
[334506378,1723170641320,-174.351376,0.000249,5]
[334506380,1723170641330,-16647.27921688,0.000249,2]
[334506382,1723170641339,-2000.0,0.000249,2]
[334506384,1723170641349,-6051.11453676,0.000249,2]
[334506386,1723170641359,-292.0,0.00024932,2]
[334506388,1723170641369,-288.3473829,0.00024932,2]
[334506390,1723170641383,-26678.65325169,0.00024948,2]
[334506392,1723170641392,-12006.70474333,0.0002499,3]
[334506609,1723170643678,-72.30612652,0.00020999,2]
[334507941,1723170657465,161.127927,0.00014247,2]
[334512477,1723170922431,5000.0,0.00025,67]
[334512478,1723171071891,405.36490758,0.00015954,2]
[334512479,1723171106045,155.45702928,0.00015954,2]
[334512480,1723171250901,161.127927,0.00014247,2]
[334512726,1723171841120,-155.1988676,0.00018302,2]
[334512728,1723171841130,-318.56274014,0.0002,2]
[334512730,1723171841140,-1444.60456197,0.0002,2]
[334512732,1723171841149,-156.45284227,0.0002,2]
[334512735,1723171841162,-151.56653755,0.0002,2]
[334512737,1723171841172,-154.79103211,0.00020721,2]
[334512739,1723171841181,-301.1738371,0.00020999,2]
[334512741,1723171841191,-297.15758386,0.00021,2]
[334512743,1723171841201,-504.22103723,0.00021658,2]
[334512745,1723171841210,-300.0,0.00021999,2]
[334512747,1723171841221,-174.0,0.00022,2]
[334512749,1723171841231,-205.409377,0.00022419,2]
[334512751,1723171841240,-168.2966148,0.00022485,2]
[334512753,1723171841249,-168.836894,0.00022506,2]
[334512755,1723171841259,-4351.71715984,0.00024,30]
[334512757,1723171841268,-153.0,0.00024194,2]
[334512759,1723171841278,-267.747436,0.00024194,2]
[334512761,1723171841287,-307.6091374,0.00024194,2]
[334512763,1723171841297,-153.0,0.00024194,2]
[334512765,1723171841306,-153.0,0.00024194,2]
[334512767,1723171841316,-468.9400894,0.00024194,2]
[334512769,1723171841325,-153.0,0.00024194,2]
[334512772,1723171841338,-153.0,0.00024194,2]
[334512774,1723171841347,-153.0,0.00024194,2]
[334512776,1723171841358,-153.8409755,0.00024194,2]
[334512778,1723171841368,-207.1717265,0.00024194,2]
[334512780,1723171841377,-155.649897,0.00024194,2]
[334512782,1723171841387,-300.6199641,0.00024194,2]
[334512784,1723171841397,-267.747436,0.00024194,2]
[334512786,1723171841407,-207.1717265,0.00024194,2]
[334512788,1723171841417,-153.0,0.00024194,2]
[334512790,1723171841427,-153.0,0.00024194,2]
[334512792,1723171841438,-267.747436,0.00024194,2]
[334512794,1723171841448,-153.0,0.00024194,2]
[334512796,1723171841457,-211.8653696,0.00024194,2]
[334512798,1723171841467,-561.3335345,0.00024194,2]
[334512800,1723171841477,-153.0,0.00024194,2]
[334512802,1723171841486,-302.4154248,0.00024194,2]
[334512804,1723171841495,-414.343453,0.00024194,2]
[334512806,1723171841504,-207.1717265,0.00024194,2]
[334512807,1723171841514,-153.0,0.00024194,2]
[334512809,1723171841524,-207.1717265,0.00024194,2]
[334512811,1723171841534,-153.0,0.00024194,2]
[334512813,1723171841543,-207.1717265,0.00024194,2]
[334512815,1723171841552,-420.0,0.00024199,2]
[334512817,1723171841562,-153.0,0.00024384,2]
[334512819,1723171841571,-153.0,0.00024575,2]
[334512821,1723171841581,-153.0,0.00024575,2]
[334512823,1723171841591,-153.0,0.00024575,2]
[334512825,1723171841601,-5308.13272752,0.00024589,2]
[334512827,1723171841610,-153.2887669,0.00024685,2]
[334512829,1723171841619,-3674.8743599,0.00024695,2]
[334512831,1723171841629,-13317.82337352,0.00024739,2]
[334512833,1723171841639,-13317.8233735,0.00024754,2]
[334512835,1723171841649,-13317.8233735,0.0002477,2]
[334512837,1723171841658,-2000.0,0.0002478,2]
[334512839,1723171841667,-13317.8233735,0.00024785,2]
[334512841,1723171841677,-294.4971025,0.00024795,2]
[334512843,1723171841686,-294.4971025,0.00024795,2]
[334512845,1723171841696,-366.9454986,0.00024795,2]
[334512847,1723171841705,-294.4971025,0.00024795,2]
[334512850,1723171841715,-294.4971025,0.00024795,2]
[334512851,1723171841725,-153.0,0.00024795,2]
[334512854,1723171841736,-584.2644336,0.00024795,2]
[334512855,1723171841747,-294.4971025,0.00024795,2]
[334512856,1723171841759,-3045.64355524,0.000248,2]
[334512857,1723171841769,-762.52,0.00024823,3]
[334512858,1723171841779,-248.35895265,0.00024827,2]
[334512859,1723171841790,-190.63,0.00024828,3]
[334512860,1723171841802,-571.94,0.00024828,3]
[334512861,1723171841812,-31718.99,0.00024828,3]
[334512862,1723171841822,-26432.5,0.00024828,3]
[334512863,1723171841832,-2000.0,0.00024829,2]
[334512864,1723171841842,-1285.11282224,0.00024829,2]
[334512865,1723171841852,-381.26,0.00024838,3]
[334512866,1723171841863,-38062.79,0.00024838,3]
[334512867,1723171841874,-3531.69464448,0.00024839,2]
[334513388,1723171847006,-13317.8233735,0.000248,2]
[334513390,1723171847017,-1776.43808304,0.00024839,2]
[334513392,1723171847027,-25064.90934075,0.00024848,3]
[334518514,1723171919463,154.79103211,0.00017019,2]
[334518515,1723172225009,241.15921738,9.9e-05,2]
[334518516,1723172240877,273.37336231,9.9e-05,2]
[334518517,1723172256142,273.37336231,9.9e-05,2]
[334518518,1723172259647,161.127927,0.00014247,2]
[334518519,1723172272345,273.37336231,9.9e-05,2]
[334518520,1723172288176,273.37336231,9.9e-05,2]
[334518521,1723172304001,273.37336231,9.9e-05,2]
[334518522,1723172306054,13514.28018513,0.00012,2]
[334518523,1723172308169,1770.39986791,9.9e-05,2]
[334518524,1723172310659,16297.03267387,9.9e-05,2]
[334518525,1723172315741,783.47130341,0.00012,2]
[334518526,1723172319468,273.37336231,9.9e-05,2]
[334518527,1723172323412,657.01482677,0.00012,2]
[334518528,1723172326209,763.85867538,0.00012,2]
[334518529,1723172327725,2019.09511631,9.9e-05,2]
[334518530,1723172335065,183.26337101,0.00012,2]
[334518531,1723172335503,273.37336231,9.9e-05,2]
[334518532,1723172340613,496.6769809,9.9e-05,2]
[334518533,1723172343560,4713.18767291,9.9e-05,2]
[334518534,1723172343676,3610.65532431,0.00012,2]
[334518535,1723172352010,176.41268585,9.9e-05,2]
[334518536,1723172363942,7657.06900633,0.00012,2]
[334518544,1723172382381,19475.72582738,9.9e-05,2]
[334518545,1723172393681,226.90503949,0.00012,2]
[334518546,1723172441143,587.83237008,0.00012,2]
[334518547,1723172441178,309.1495329,0.00012,2]
[334518548,1723172456037,314.09240613,0.00012,2]
[334518549,1723172461875,319.25972832,0.00012,7]
[334518550,1723172462743,1677.37697649,0.00012,2]
[334518551,1723172470718,157.1321967,0.00012,2]
[334518552,1723172492042,314.09240613,0.00014545,2]
[334518553,1723172819149,-349.46351566,0.00017178,2]
[334518556,1723172901035,273.37336231,9.9e-05,2]
[334518557,1723172917053,235.43738649,9.9e-05,2]
[334518558,1723172946710,3604.24191749,9.9e-05,2]
[334518559,1723172958196,1499.8326658,9.9e-05,2]
[334518560,1723172960505,304.64187154,0.00012,2]
[334518561,1723172961147,218.4830031,9.9e-05,2]
[334518562,1723172962032,179.80471899,9.9e-05,2]
[334518563,1723172962603,309.4120633,0.00012,2]
[334518564,1723172973759,2110.13641058,9.9e-05,2]
[334518565,1723172974112,-250.0,0.00016132,2]
[334518566,1723172974134,-250.0,0.00016176,2]
[334518567,1723172974156,-250.0,0.00016221,2]
[334518568,1723172974180,-250.0,0.00016265,2]
[334518569,1723172974202,-250.0,0.00016309,2]
[334518570,1723172974224,-250.0,0.00016353,2]
[334518571,1723172974245,-67.87670929,0.00016398,2]
[334518572,1723172974284,3796.38317205,9.9e-05,2]
[334518573,1723172979586,24900.0,0.00015632,2]
[334518574,1723172984483,16297.03267387,9.9e-05,2]
[334518575,1723172985660,404.97965185,9.9e-05,2]
[334518576,1723172986472,231.32946189,0.00012,2]
[334518577,1723172988608,11980.62385084,9.9e-05,2]
[334518578,1723172989232,3604.24191749,0.00012,2]
[334518579,1723172989271,220.33449167,9.9e-05,2]
[334518580,1723172993142,918.81055282,0.00012,2]
[334518584,1723172997329,240.87977821,0.00012,2]
[334518585,1723172999111,4713.18767291,9.9e-05,2]
[334518586,1723173010289,2110.13641058,0.00014545,2]
[334518587,1723173013522,1961.102026,0.00015632,2]
[334518588,1723173016167,218.54383377,0.00014545,2]
[334518589,1723173019498,155.0450655,0.00014545,2]
[334518590,1723173020237,165.59010032,0.00014545,2]
[334518591,1723173024162,404.97965185,0.00014545,2]
[334518592,1723173025139,3622.4332299,0.00015632,2]
[334518593,1723173026878,1674.1,0.00010959,2]
[334518594,1723173029981,7948.96616174,0.00014545,2]
[334518595,1723173030014,5224.1984291,0.00015632,2]
[334518596,1723173032231,309.3349299,0.00014545,2]
[334518634,1723173032825,-665.64018879,0.00016347,2]
[334518635,1723173032835,-182.12329071,0.00016398,2]
[334518636,1723173032845,-250.0,0.00016442,2]
[334518637,1723173032854,-250.0,0.00016486,2]
[334518638,1723173032863,-250.0,0.0001653,2]
[334518639,1723173032872,-30.4360407,0.00016575,2]
[334518640,1723173032883,-219.5639593,0.00016575,2]
[334518641,1723173032893,-250.0,0.00016619,2]
[334518642,1723173032903,-250.0,0.00016663,2]
[334518643,1723173032913,-196.18628423,0.00016707,2]
[334518650,1723173033031,-53.81371577,0.00016707,2]
[334518652,1723173033040,-208.47628427,0.00016739,2]
[334518654,1723173033052,-91.52371573,0.00016739,2]
[334518656,1723173033062,-1578.17336294,0.0001674,2]
[334518658,1723173033074,-718.12699326,0.0001674,2]
[334518660,1723173033085,-269.24912565,0.0001674,2]
[334518702,1723173033479,231.32946189,0.00014545,2]
[334518841,1723173038300,974.2535263,0.00014545,2]
[334518987,1723173040123,-30992.76907065,0.0001674,2]
[334518990,1723173040136,-250.0,0.00016752,2]
[334518992,1723173040148,-250.0,0.00016796,2]
[334518994,1723173040158,-250.0,0.0001684,2]
[334518996,1723173040168,-241.88782727,0.00016845,2]
[334518998,1723173040178,-202.12042604,0.00016845,2]
[334519000,1723173040190,-500.0,0.00016845,2]
[334519002,1723173040200,-236.26862195,0.00016845,2]
[334519004,1723173040210,-401.71031195,0.00016845,2]
[334519006,1723173040220,-500.0,0.00016845,2]
[334519008,1723173040230,-248.35895265,0.00016845,2]
[334519010,1723173040239,-436.10048703,0.00016845,2]
[334519012,1723173040249,-500.0,0.00016845,2]
[334519014,1723173040259,-439.46291515,0.00016845,2]
[334519016,1723173040268,-47057.8349008,0.00016846,2]
[334519017,1723173040279,-250.0,0.00016884,2]
[334519019,1723173040288,-250.0,0.00016928,2]
[334519021,1723173040298,-250.0,0.00016973,2]
[334519023,1723173040307,-320.6211242,0.00017178,2]
[334519025,1723173040318,-2009.48964204,0.00017178,2]
[334519027,1723173040328,-3000.0,0.00017188,2]
[334519029,1723173040337,-5236.61359711,0.00017379,2]
[334519031,1723173040347,-398.37320417,0.00017379,2]
[334519033,1723173040357,-154.79103211,0.00017389,2]
[334519035,1723173040367,-154.79103211,0.00017389,2]
[334519037,1723173040377,-952.35719277,0.00017389,2]
[334519041,1723173040388,-952.35719277,0.00017389,2]
[334519045,1723173040397,-420.0,0.00018413,2]
[334519048,1723173040407,-1395.08,0.00018935,3]
[334519051,1723173040417,-543.3913977,0.00018945,2]
[334519053,1723173040427,-7005.89832707,0.00018945,2]
[334519055,1723173040437,-48443.3182955,0.00018969,2]
[334519057,1723173040447,-715.9643332,0.00018969,2]
[334519080,1723173040669,-26268.846052,0.00018969,2]
[334519083,1723173040680,-216.47957388,0.00018976,2]
[334519086,1723173040690,-1500.0,0.00018979,2]
[334519089,1723173040700,-156.69756504,0.00018979,2]
[334519091,1723173040710,-1655.3300399,0.00018979,2]
[334519093,1723173040720,-816.72532423,0.00018979,2]
[334519095,1723173040730,-1094.54865331,0.00018989,2]
[334519097,1723173040740,-196.58453843,0.00018989,2]
[334519099,1723173040750,-206.35296922,0.00018989,2]
[334519101,1723173040761,-522.63402036,0.00018989,2]
[334519103,1723173040771,-413.18177562,0.00018989,2]
[334519105,1723173040781,-1768.01961959,0.00018989,2]
[334519107,1723173040791,-196.58453843,0.00018989,2]
[334519126,1723173040802,-189.86108484,0.00018989,2]
[334519128,1723173040967,-154.95223278,0.00018999,2]
[334519130,1723173040976,-309.52024671,0.00018999,2]
[334519132,1723173040986,-694.52815247,0.00018999,2]
[334519134,1723173040995,-403.97923523,0.00018999,2]
[334519136,1723173041005,-845.54644341,0.00018999,2]
[334519138,1723173041015,-162.45860256,0.00018999,2]
[334519139,1723173041024,-154.79103211,0.00018999,2]
[334519141,1723173041034,-808.66218785,0.00018999,2]
[334519143,1723173041043,-250.75013181,0.00018999,2]
[334519145,1723173041053,-27683.8114272,0.00018999,2]
[334519151,1723173041104,-7347.33646437,0.00018999,2]
[334519153,1723173041117,-534.23635652,0.00018999,2]
[334519155,1723173041126,-154.79103211,0.00018999,2]
[334519157,1723173041135,-254.69944997,0.00018999,2]
[334519159,1723173041144,-174.63190084,0.00018999,2]
[334519161,1723173041156,-414.16414531,0.00018999,2]
[334519163,1723173041165,-471.11500661,0.00019046,2]
[334519165,1723173041175,-209.18351946,0.00019046,2]
[334519169,1723173041187,-205.31051458,0.00019046,2]
[334519173,1723173041196,-154.79103211,0.00019046,2]
[334519176,1723173041206,-270.78091765,0.00019046,2]
[334519179,1723173041216,-180.58289429,0.00019046,2]
[334519181,1723173041226,-201.59267893,0.00019046,2]
[334519183,1723173041235,-532.54272678,0.00019046,2]
[334519185,1723173041244,-343.31801013,0.00019046,2]
[334519187,1723173041255,-188.2181997,0.00019046,2]
[334519189,1723173041264,-287.77266661,0.00019046,2]
[334519191,1723173041274,-209.90726283,0.00019046,2]
[334519193,1723173041284,-154.90143756,0.00019046,2]
[334519195,1723173041293,-187.62252612,0.00019046,2]
[334519197,1723173041302,-306.3279645,0.00019046,2]
[334519199,1723173041311,-154.79103211,0.00019102,2]
[334519201,1723173041321,-159.33909934,0.00019102,2]
[334519203,1723173041331,-154.79103211,0.00019102,2]
[334519205,1723173041340,-183.14226192,0.00019102,2]
[334519207,1723173041349,-192.07795821,0.00019102,2]
[334519209,1723173041359,-155.00008055,0.00019102,2]
[334519211,1723173041369,-157.05367525,0.00019102,2]
[334519213,1723173041378,-154.79103211,0.00019102,2]
[334519215,1723173041387,-156.78691505,0.00019102,2]
[334519217,1723173041398,-154.79103211,0.00019102,2]
[334519219,1723173041408,-154.79103211,0.00019139,2]
[334519221,1723173041418,-154.79103211,0.00019147,2]
[334519223,1723173041427,-244.97937896,0.00019155,2]
[334519225,1723173041437,-244.97937896,0.00019155,2]
[334519227,1723173041446,-168.836894,0.00019178,2]
[334519229,1723173041456,-48443.3182955,0.00019375,2]
[334519231,1723173041465,-14385.42138662,0.00019385,2]
[334519233,1723173041474,-42354.45522892,0.00019477,2]
[334519235,1723173041483,-8834.48131506,0.00019477,2]
[334519237,1723173041493,-9648.27796999,0.00019477,2]
[334519239,1723173041502,-151.0,0.00019478,2]
[334519241,1723173041511,-151.0,0.00019478,2]
[334519243,1723173041520,-151.0,0.00019478,2]
[334519245,1723173041530,-224.40566705,0.00019546,2]
[334519247,1723173041539,-198.61491703,0.00019546,2]
[334519249,1723173041549,-500.0,0.00019546,2]
[334519251,1723173041558,-512.47029001,0.00019546,2]
[334519253,1723173041567,-178.27684048,0.00019546,2]
[334519255,1723173041576,-512.47029001,0.00019546,2]
[334519257,1723173041586,-512.47029001,0.00019546,2]
[334519259,1723173041595,-512.47029001,0.00019546,2]
[334519261,1723173041605,-512.47029001,0.00019546,2]
[334519263,1723173041615,-512.47029001,0.00019546,2]
[334519265,1723173041625,-512.47029001,0.00019546,2]
[334519267,1723173041634,-512.47029001,0.00019546,2]
[334519269,1723173041644,-512.47029001,0.00019546,2]
[334519271,1723173041657,-512.47029001,0.00019546,2]
[334519273,1723173041666,-512.47029001,0.00019546,2]
[334519275,1723173041676,-512.47029001,0.00019546,2]
[334519277,1723173041686,-1764.53474525,0.00019547,2]
[334519279,1723173041695,-3087.63872233,0.00019547,2]
[334519281,1723173041705,-1795.64982845,0.00019547,2]
[334519283,1723173041714,-48443.3182955,0.00019661,2]
[334519285,1723173041724,-695.43695,0.00019661,2]
[334519287,1723173041733,-695.43695,0.00019661,2]
[334519289,1723173041742,-924.028753,0.00019661,2]
[334519291,1723173041752,-924.028753,0.00019661,2]
[334519293,1723173041761,-151.0,0.00019661,2]
[334519295,1723173041771,-206.115534,0.00019661,2]
[334519297,1723173041780,-206.115534,0.00019661,2]
[334519299,1723173041791,-14385.4213866,0.00019671,2]
[334519301,1723173041801,-151.0,0.00019671,2]
[334519303,1723173041810,-151.0,0.00019671,2]
[334519305,1723173041820,-151.0,0.00019671,2]
[334519306,1723173041829,-14385.4213866,0.00019957,2]
[334519307,1723173041838,-16772.93723804,0.00019999,2]
[334519308,1723173041847,-695.43695,0.00019999,2]
[334519309,1723173041857,-695.43695,0.00019999,2]
[334519310,1723173041866,-924.028753,0.00019999,2]
[334519312,1723173041874,-924.028753,0.00019999,2]
[334519314,1723173041883,-1611.61280657,0.00019999,2]
[334519316,1723173041892,-151.0,0.00019999,2]
[334519318,1723173041903,-1620.75218473,0.00019999,2]
[334519320,1723173041913,-1471.5401741,0.00019999,2]
[334519322,1723173041923,-206.115534,0.00019999,2]
[334519324,1723173041933,-250.47658072,0.00019999,2]
[334519326,1723173041942,-206.115534,0.00019999,2]
[334519328,1723173041951,-154.79103211,0.00019999,2]
[334519330,1723173041962,-1444.60456197,0.0002,2]
[334519332,1723173041971,-156.45284227,0.0002,2]
[334519334,1723173041980,-318.56274014,0.0002,2]
[334519336,1723173041990,-151.56653755,0.0002,2]
[334519338,1723173041999,-14385.4213866,0.00020243,2]
[334519340,1723173042010,-587.0,0.00020255,2]
[334519342,1723173042020,-2168.83595522,0.0002028,2]
[334519344,1723173042029,-519.94052242,0.0002028,2]
[334519346,1723173042038,-154.79103211,0.0002028,2]
[334519348,1723173042047,-727.95598898,0.0002028,2]
[334519350,1723173042056,-1389.35254021,0.0002028,2]
[334519352,1723173042066,-573.15262334,0.0002028,2]
[334519354,1723173042076,-157.5751207,0.0002028,2]
[334519356,1723173042085,-157.39551787,0.0002028,2]
[334519358,1723173042094,-154.79103211,0.0002028,2]
[334519360,1723173042105,-284.16424637,0.0002028,2]
[334519361,1723173042116,-160.17752587,0.0002028,2]
[334519363,1723173042126,-154.79103211,0.0002028,2]
[334519365,1723173042135,-154.95892306,0.0002028,2]
[334519367,1723173042144,-155.14677294,0.0002028,2]
[334519369,1723173042155,-154.79103211,0.0002028,2]
[334519371,1723173042164,-2790.16,0.00020305,3]
[334519373,1723173042174,-151.0,0.00020519,2]
[334519375,1723173042184,-158.670737,0.00020519,2]
[334519377,1723173042193,-215.354607,0.00020519,2]
[334519379,1723173042202,-48443.3182955,0.00020519,2]
[334519381,1723173042211,-14385.4213866,0.00020529,2]
[334519383,1723173042221,-3045.64355524,0.00020529,2]
[334519385,1723173042230,-695.43695,0.00020529,2]
[334519387,1723173042241,-695.43695,0.00020529,2]